fUST/lending_fUST_20260205
["ID","MTS","AMOUNT","RATE_DAILY","PERIOD"]
[404552168,1770281840970,3684.4,0.00025759,120]
[404552169,1770281974618,327.8051545,0.00039503,120]
[404552205,1770282631912,-150.0,0.00025376,2]
[404552207,1770282631922,-1730.25152328,0.00026849,2]
[404552432,1770282638083,-2815.31469992,0.00026849,2]
[404552434,1770282638094,-1200.0,0.00027101,2]
[404552437,1770282638104,-300.0,0.00027104,2]
[404552438,1770282638113,-1840.03539928,0.00027105,2]
[404552440,1770282638122,-300.0,0.00027105,30]
[404552442,1770282638131,-300.0,0.00027105,30]
[404552444,1770282638141,-300.0,0.00027105,30]
[404552446,1770282638150,-300.0,0.00027105,30]
[404552448,1770282638160,-300.0,0.00027105,30]
[404552450,1770282638170,-300.0,0.00027105,30]
[404552453,1770282638180,-300.0,0.00027105,30]
[404552456,1770282638190,-300.0,0.00027105,30]
[404552459,1770282638199,-300.0,0.00027105,30]
[404552462,1770282638209,-300.0,0.00027105,30]
[404552464,1770282638219,-300.0,0.00027105,30]
[404552467,1770282638229,-300.0,0.00027105,30]
[404552469,1770282638239,-300.0,0.00027105,30]
[404552471,1770282638250,-300.0,0.00027105,30]
[404552473,1770282638260,-300.0,0.00027105,30]
[404552475,1770282638270,-177.0,0.00027376,2]
[404552477,1770282638280,-420.0,0.00029299,2]
[404552479,1770282638293,-204.0,0.00029376,2]
[404552481,1770282638303,-170.9123682,0.00029709,2]
[404552483,1770282638313,-231.0,0.00031376,2]
[404552485,1770282638322,-180.0,0.00031672,2]
[404552487,1770282638332,-516.783952,0.0003332,2]
[404552489,1770282638341,-258.0,0.00033376,120]
[404552491,1770282638351,-516.783952,0.00034722,2]
[404552493,1770282638361,-285.0,0.00035376,120]
[404552495,1770282638371,-500.0,0.00035439,7]
[404552497,1770282638381,-500.0,0.00035439,7]
[404552498,1770282638391,-500.0,0.00035439,7]
[404552500,1770282638401,-595.26046708,0.00035439,7]
[404552502,1770282638411,-500.0,0.00035439,7]
[404552504,1770282638421,-500.0,0.00035439,7]
[404552506,1770282638430,-500.0,0.00035439,7]
[404552507,1770282638440,-500.0,0.00035439,7]
[404552508,1770282638450,-500.0,0.00035439,7]
[404552509,1770282638460,-500.0,0.00035439,7]
[404552510,1770282638470,-178.79683357,0.00035439,7]
[404552511,1770282638480,-306.54485125,0.00035439,7]
[404552512,1770282638490,-500.0,0.00035439,7]
[404552513,1770282638500,-500.0,0.00035439,7]
[404552514,1770282638509,-500.0,0.00035439,7]
[404552515,1770282638519,-500.0,0.00035439,7]
[404552516,1770282638532,-500.0,0.00035439,7]
[404552517,1770282638544,-491.39833206,0.00035439,7]
[404552518,1770282638554,-500.0,0.00035439,7]
[404552519,1770282638563,-500.0,0.00035439,7]
[404552520,1770282638573,-185.132,0.00035444,42]
[404552521,1770282638582,-741.26793723,0.00035444,7]
[404552522,1770282638592,-1063.4615657,0.00035445,120]
[404552523,1770282638604,-2620.9384343,0.00035445,120]
[404552524,1770282638614,-316.28680522,0.00035445,120]
[404552525,1770282638626,-317.09056284,0.00035445,120]
[404552588,1770282640160,-1840.03539928,0.00035445,120]
[404552873,1770282644250,-297.2921848,0.00035445,120]
[404552874,1770282644261,-420.0,0.00035445,120]
[404552875,1770282644831,-493.69504786,0.00035445,120]
[404552876,1770282644840,-174.69094473,0.00035447,2]
[404552877,1770282644851,-455.08862534,0.00035447,2]
[404552878,1770282644863,-627.21954401,0.00035447,2]
[404552887,1770282646334,-2633.93243014,0.00035447,2]
[404552888,1770282646344,-600.0,0.00035964,30]
[404552889,1770282646354,-516.783952,0.00036125,2]
[404552890,1770282646363,-312.0,0.00037376,120]
[404552891,1770282646373,-516.783952,0.00037528,2]
[404552892,1770282646382,-3684.4,0.00037799,120]
[404552893,1770282646392,-1697.698,0.0003807,120]
[404552894,1770282646401,-3684.4,0.0003881,120]
[404552895,1770282646411,-516.783952,0.0003893,2]
[404552896,1770282646420,-482.64,0.00039,20]
[404552897,1770282646430,-204.72505301,0.00039375,11]
[404552898,1770282646439,-339.0,0.00039376,120]
[404552899,1770282646449,-3684.4,0.00039463,120]
[404552900,1770282646458,-776.56394879,0.00039465,3]
[404552901,1770282646467,-3684.4,0.00039469,120]
[404552902,1770282646477,-178.75945571,0.00039474,15]
[404552903,1770282646487,-3684.4,0.00039475,120]
[404552904,1770282646496,-3684.4,0.00039475,120]
[404552905,1770282646506,-3684.4,0.00039475,120]
[404552906,1770282646515,-3684.4,0.00039475,120]
[404552907,1770282646525,-3684.4,0.00039475,120]
[404552908,1770282646534,-3684.4,0.00039475,120]
[404552909,1770282646546,-3684.4,0.00039475,120]
[404552910,1770282646555,-172.70912779,0.00039475,120]
[404552912,1770283089306,234.0,0.00039507,20]
[404552913,1770283193241,152.0,0.00014,2]
[404552916,1770283587731,-300.0,0.00027385,30]
[404552917,1770283587786,-300.0,0.00027385,30]
[404552918,1770283587843,-300.0,0.00027385,30]
[404552919,1770283587900,-300.0,0.00027385,30]
[404552920,1770283587957,-300.0,0.00027385,30]
[404552921,1770283588014,-300.0,0.00027385,30]
[404552922,1770283588071,-300.0,0.00027385,30]
[404552923,1770283588127,-300.0,0.00027385,30]
[404552924,1770283588186,-300.0,0.00027385,30]
[404552925,1770283588242,-300.0,0.00027385,30]
[404552926,1770283588298,-300.0,0.00027385,30]
[404552927,1770283588353,-300.0,0.00027385,30]
[404552928,1770283588409,-300.0,0.00027385,30]
[404552929,1770283588465,-300.0,0.00027385,30]
[404552930,1770283588522,-300.0,0.00027385,30]
[404552931,1770283588578,-600.0,0.00027932,30]
[404552932,1770283588636,-720.0,0.00030725,30]
[404552933,1770283588693,-258.0,0.00033418,120]
[404552934,1770283588748,-500.0,0.00033796,7]
[404552935,1770283588803,-500.0,0.00033796,7]
[404552936,1770283588856,-500.0,0.00033796,7]
[404552937,1770283588908,-500.0,0.00033796,7]
[404552938,1770283588960,-500.0,0.00033796,7]
[404552939,1770283589015,-500.0,0.00033796,7]
[404552940,1770283589069,-500.0,0.00033796,7]
[404552941,1770283589122,-500.0,0.00033796,7]
[404552942,1770283589179,-500.0,0.00033796,7]
[404552943,1770283589231,-500.0,0.00033796,7]
[404552944,1770283589283,-500.0,0.00033796,7]
[404552945,1770283589334,-460.21040713,0.00033796,7]
[404552946,1770283589388,-500.0,0.00033796,7]
[404552947,1770283589439,-500.0,0.00033796,7]
[404552948,1770283589490,-500.0,0.00033796,7]
[404552949,1770283589544,-500.0,0.00033796,7]
[404552950,1770283589600,-438.37491152,0.00033796,7]
[404552951,1770283589655,-500.0,0.00033796,7]
[404552952,1770283589710,-285.42305903,0.00033796,7]
[404552953,1770283589765,-500.0,0.00033796,7]
[404552954,1770283589821,-396.31009502,0.00033796,7]
[404552955,1770283589876,-500.0,0.00033796,7]
[404552956,1770283589932,-500.0,0.00033796,7]
[404552957,1770283589987,-500.0,0.00033796,7]
[404552958,1770283590045,-500.0,0.00033796,7]
[404552959,1770283590101,-299.90416026,0.00033796,7]
[404552960,1770283590157,-500.0,0.00033796,7]
[404552961,1770283590213,-528.1608966,0.00033796,7]
[404552962,1770283590271,-500.0,0.00033796,7]
[404552963,1770283590414,-741.26793723,0.00033796,7]
[404552964,1770283590471,-864.0,0.00033797,30]
[404552965,1770283590525,-285.0,0.00035418,120]
[404552966,1770283590580,-185.13325042,0.00036144,44]
[404552967,1770283590638,-1000.0,0.00037177,30]
[404552968,1770283590696,-312.0,0.00037418,120]
[404552969,1770283590751,-5436.09060351,0.00037524,7]
[404552970,1770283590807,-414.0,0.00039,30]
[404552971,1770283590863,-339.0,0.00039418,120]
[404552972,1770283590919,-2000.0,0.00039502,20]
[404552973,1770283590976,-1000.0,0.00040895,60]
[404552974,1770283591034,-244.0,0.00040895,60]
[404552975,1770283591089,-599.59174568,0.00041096,31]
[404552976,1770283591141,-383.17,0.00043726,60]
[404552977,1770283591194,-786.0,0.000449,30]
[404552978,1770283591251,-1000.0,0.00044984,60]
[404552979,1770283591307,-492.0,0.00044984,60]
[404552980,1770283591356,-163.59,0.00045,14]
[404552981,1770283591410,-300.0,0.00049014,90]
[404552982,1770283591467,-1917.17476209,0.00049305,4]
[404552983,1770283591535,-10000.0,0.00049315,30]
[404552984,1770283591595,-1000.0,0.00049483,120]
[404552985,1770283591653,-791.0,0.00049483,120]
[404552986,1770283591708,-204.72505301,0.00049936,22]
[404552987,1770283591763,-151.0,0.00050136,30]
[404552988,1770283591819,-151.0,0.00050821,32]
[404552989,1770283591885,-151.0,0.00051506,34]
[404552990,1770283591952,-300.0,0.00051945,120]
[404552991,1770283625028,-300.0,0.00026495,30]
[404552992,1770283625088,-300.0,0.00026495,30]
[404552993,1770283625146,-300.0,0.00026495,30]
[404552994,1770283625203,-300.0,0.00026495,30]
[404552995,1770283625265,-300.0,0.00026495,30]
[404552996,1770283625322,-300.0,0.00026495,30]
[404552997,1770283625379,-300.0,0.00026495,30]
[404552998,1770283625436,-300.0,0.00026495,30]
[404552999,1770283625492,-300.0,0.00026495,30]
[404553000,1770283625550,-300.0,0.00026495,30]
[404553001,1770283625608,-300.0,0.00026495,30]
[404553002,1770283625664,-300.0,0.00026495,30]
[404553003,1770283625723,-300.0,0.00026495,30]
[404553004,1770283625779,-300.0,0.00026495,30]
[404553005,1770283625942,-300.0,0.00026495,30]
[404553006,1770283626003,-600.0,0.00027932,30]
[404553007,1770283626059,-720.0,0.00030725,30]
[404553008,1770283626120,-864.0,0.00033797,30]
[404553009,1770283626184,-1000.0,0.00037177,30]
[404553010,1770283626244,-1000.0,0.00040895,60]
[404553011,1770283626304,-244.0,0.00040895,60]
[404553012,1770283626364,-1000.0,0.00044984,60]
[404553013,1770283626420,-492.0,0.00044984,60]
[404553014,1770283626478,-1000.0,0.00049483,120]
[404553015,1770283626537,-791.0,0.00049483,120]
[404553016,1770283626593,-151.0,0.00052191,36]
[404553017,1770283626648,-151.0,0.00052876,38]
[404553018,1770283626702,-151.0,0.00053561,40]
[404553019,1770283626769,-151.0,0.00054246,42]
[404553020,1770283626832,-1000.0,0.00054431,120]
[404553021,1770283626895,-1000.0,0.00054431,120]
[404553022,1770283626954,-151.0,0.000546,25]
[404553023,1770283627013,-300.0,0.00054685,120]
[404553024,1770283627071,-500.0,0.00054794,120]
[404553025,1770283627129,-2748.66,0.00054794,120]
[404553026,1770283627190,-500.0,0.00054794,120]
[404553027,1770283627252,-500.0,0.00054794,120]
[404553028,1770283627311,-241.95447305,0.00054794,7]
[404553029,1770283627371,-200.0,0.00054794,120]
[404553030,1770283627430,-500.0,0.00054794,120]
[404553031,1770283627488,-2542.46,0.00054794,120]
[404553032,1770283627545,-2594.27,0.00054794,90]
[404553033,1770283627606,-500.0,0.00054794,120]
[404553034,1770283627664,-1003.47,0.00054794,21]
[404553035,1770283627724,-999.0,0.00054794,120]
[404553036,1770283627781,-3929.24,0.00054794,14]
[404553037,1770283627840,-500.0,0.00054794,120]
[404553038,1770283627895,-367.41228599,0.00054794,120]
[404553039,1770283627952,-300.0,0.00054795,120]
[404553040,1770283628011,-151.0,0.00054931,120]
[404553041,1770283628069,-500.0,0.00055342,120]
[404553042,1770283628130,-2748.66,0.00055342,120]
[404553043,1770283628193,-274.270417,0.00055342,120]
[404553044,1770283628252,-500.0,0.00055342,120]
[404553045,1770283628326,-200.0,0.00055342,120]
[404553046,1770283628399,-500.0,0.00055342,120]
[404553047,1770283628461,-2542.46,0.00055342,120]
[404553048,1770283628532,-2594.27,0.00055342,90]
[404553049,1770283628597,-500.0,0.00055342,120]
[404553050,1770283628667,-1003.47,0.00055342,21]
[404553051,1770283628735,-3929.24,0.00055342,14]
[404553052,1770283628804,-500.0,0.00055342,120]
[404553053,1770283628873,-151.0,0.00055616,120]
[404553054,1770283628937,-500.0,0.0005589,120]
[404553055,1770283629005,-2748.66,0.0005589,120]
[404553056,1770283629070,-500.0,0.0005589,120]
[404553057,1770283629142,-200.0,0.0005589,120]
[404553058,1770283629209,-500.0,0.0005589,120]
[404553059,1770283629273,-2542.46,0.0005589,120]
[404553060,1770283629334,-2594.27,0.0005589,90]
[404553061,1770283629401,-500.0,0.0005589,120]
[404553062,1770283629477,-1003.47,0.0005589,21]
[404553063,1770283629542,-3929.24,0.0005589,14]
[404553064,1770283629607,-500.0,0.0005589,120]
[404553065,1770283629674,-169.68,0.000559,14]
[404553066,1770283629737,-4099.24405356,0.00056,120]
[404553067,1770283629798,-672.44631815,0.00056258,21]
[404553068,1770283629863,-259.23144692,0.00056301,120]
[404553069,1770283629928,-151.0,0.000564,28]
[404553070,1770283629991,-500.0,0.00056438,120]
[404553071,1770283630050,-2748.66,0.00056438,120]
[404553072,1770283630113,-500.0,0.00056438,120]
[404553073,1770283630175,-200.0,0.00056438,120]
[404553074,1770283630236,-500.0,0.00056438,120]
[404553075,1770283630296,-2542.46,0.00056438,120]
[404553076,1770283630366,-2594.27,0.00056438,90]
[404553077,1770283630429,-500.0,0.00056438,120]
[404553078,1770283630490,-1003.47,0.00056438,21]
[404553079,1770283630553,-3929.24,0.00056438,14]
[404553080,1770283630615,-500.0,0.00056438,120]
[404553081,1770283630677,-196.61,0.000565,30]
[404553082,1770283630735,-821.306162,0.00056823,30]
[404553083,1770283630794,-1917.17476209,0.00056976,5]
[404553084,1770283630975,-500.0,0.00056986,120]
[404553085,1770283631037,-2748.66,0.00056986,120]
[404553086,1770283631094,-500.0,0.00056986,120]
[404553087,1770283631149,-200.0,0.00056986,120]
[404553088,1770283631205,-500.0,0.00056986,120]
[404553089,1770283631262,-2542.46,0.00056986,120]
[404553090,1770283631318,-2594.27,0.00056986,90]
[404553091,1770283631372,-500.0,0.00056986,120]
[404553092,1770283631429,-1003.47,0.00056986,21]
[404553093,1770283631487,-3929.24,0.00056986,14]
[404553094,1770283631542,-597.80160047,0.00056986,120]
[404553095,1770283631595,-323.66325852,0.00057534,120]
[404553096,1770283631647,-2748.66,0.00057534,120]
[404553097,1770283631699,-500.0,0.00057534,120]
[404553098,1770283631750,-200.0,0.00057534,120]
[404553099,1770283631802,-500.0,0.00057534,120]
[404553100,1770283631854,-2542.46,0.00057534,120]
[404553101,1770283631909,-2594.27,0.00057534,90]
[404553102,1770283631965,-500.0,0.00057534,120]
[404553103,1770283632020,-1003.47,0.00057534,21]
[404553104,1770283632074,-3929.24,0.00057534,14]
[404553105,1770283632128,-1917.17476209,0.0005799,5]
[404553106,1770283632189,-50000.0,0.00058,120]
[404553107,1770283632247,-1917.17476209,0.00058072,5]
[404553108,1770283632304,-2748.66,0.00058082,120]
[404553109,1770283632358,-500.0,0.00058082,120]
[404553110,1770283632414,-270.31345374,0.00058082,120]
[404553111,1770283632471,-500.0,0.00058082,120]
[404553112,1770283632527,-2542.46,0.00058082,120]
[404553113,1770283632584,-2594.27,0.00058082,90]
[404553114,1770283632640,-500.0,0.00058082,120]
[404553115,1770283632698,-1003.47,0.00058082,21]
[404553117,1770283632760,-3929.24,0.00058082,14]
[404553118,1770283632821,-151.0,0.000582,27]
[404553119,1770283632883,-2748.66,0.0005863,120]
[404553120,1770283632940,-500.0,0.0005863,120]
[404553121,1770283633000,-500.0,0.0005863,120]
[404553122,1770283633058,-2542.46,0.0005863,120]
[404553123,1770283633116,-2594.27,0.0005863,90]
[404553124,1770283633172,-500.0,0.0005863,120]
[404553125,1770283633228,-1003.47,0.0005863,21]
[404553126,1770283633284,-3929.24,0.0005863,14]
[404553127,1770283633341,-500.0,0.00058677,120]
[404553128,1770283633396,-283.75634086,0.000589,120]
[404553129,1770283633452,-3834.34952418,0.0005899,5]
[404553130,1770283633509,-2181.43527,0.00059,120]
[404553131,1770283633566,-72910.8,0.00059,120]
[404553132,1770283633623,-1917.17476209,0.00059167,5]
[404553133,1770283633679,-250.0,0.00059177,120]
[404553134,1770283633734,-250.0,0.00059177,120]
[404553135,1770283633790,-168.78958132,0.00059177,120]
[404553136,1770283633844,-250.0,0.00059177,120]
[404553137,1770283633897,-250.0,0.00059177,120]
[404553138,1770283633950,-250.0,0.00059177,120]
[404553139,1770283634004,-250.0,0.00059177,120]
[404553140,1770283634059,-250.0,0.00059177,120]
[404553141,1770283634115,-250.0,0.00059177,120]
[404553142,1770283634174,-250.0,0.00059177,120]
[404553143,1770283634229,-250.0,0.00059177,120]
[404553144,1770283634284,-250.0,0.00059177,120]
[404553145,1770283634337,-250.0,0.00059177,120]
[404553146,1770283634389,-250.0,0.00059177,120]
[404553147,1770283634442,-250.0,0.00059177,120]
[404553148,1770283634496,-250.0,0.00059177,120]
[404553149,1770283634551,-250.0,0.00059177,120]
[404553150,1770283634604,-250.0,0.00059177,120]
[404553151,1770283634660,-250.0,0.00059177,120]
[404553152,1770283634713,-250.0,0.00059177,120]
[404553153,1770283634767,-250.0,0.00059177,120]
[404553154,1770283634820,-250.0,0.00059177,120]
[404553155,1770283634872,-250.0,0.00059177,120]
[404553156,1770283634925,-250.0,0.00059177,120]
[404553157,1770283634981,-250.0,0.00059177,120]
[404553158,1770283635037,-250.0,0.00059177,120]
[404553159,1770283635095,-250.0,0.00059177,120]
[404553160,1770283635154,-250.0,0.00059177,120]
[404553161,1770283635214,-250.0,0.00059177,120]
[404553162,1770283635270,-250.0,0.00059177,120]
[404553163,1770283635326,-172.59382175,0.00059177,120]
[404553164,1770283635389,-250.0,0.00059177,120]
[404553165,1770283635466,-250.0,0.00059177,120]
[404553166,1770283635548,-250.0,0.00059177,120]
[404553167,1770283635626,-250.0,0.00059177,120]
[404553168,1770283635690,-250.0,0.00059177,120]
[404553169,1770283635750,-250.0,0.00059177,120]
[404553170,1770283635813,-250.0,0.00059177,120]
[404553171,1770283635874,-250.0,0.00059177,120]
[404553172,1770283635930,-250.0,0.00059177,120]
[404553173,1770283635985,-250.0,0.00059177,120]
[404553174,1770283636040,-250.0,0.00059177,120]
[404553175,1770283636188,-250.0,0.00059177,120]
[404553176,1770283636245,-250.0,0.00059177,120]
[404553177,1770283636303,-250.0,0.00059177,120]
[404553178,1770283636357,-277.56568891,0.00059177,120]
[404553179,1770283636409,-261.00827298,0.00059177,120]
[404553180,1770283636463,-433.23195527,0.00059177,120]
[404553181,1770283636517,-151.0,0.00059177,120]
[404553182,1770283636572,-156.587,0.00059177,120]
[404553183,1770283636625,-162.380719,0.00059177,120]
[404553184,1770283636680,-168.3888056,0.00059177,120]
[404553185,1770283636735,-174.61919141,0.00059177,120]
[404553186,1770283636787,-181.08010149,0.00059177,120]
[404553187,1770283636838,-187.78006525,0.00059177,120]
[404553188,1770283636889,-194.72792766,0.00059177,120]
[404553189,1770283636943,-201.93286099,0.00059177,120]
[404553190,1770283636997,-209.40437684,0.00059177,120]
[404553191,1770283637051,-217.15233878,0.00059177,120]
[404553192,1770283637118,-225.18697532,0.00059177,120]
[404553193,1770283637180,-233.51889341,0.00059177,120]
[404553194,1770283637238,-242.15909246,0.00059177,120]
[404553195,1770283637295,-251.11897888,0.00059177,120]
[404553196,1770283637353,-260.4103811,0.00059177,120]
[404553197,1770283637409,-270.0455652,0.00059177,120]
[404553198,1770283637465,-280.03725112,0.00059177,120]
[404553199,1770283637518,-1000.0,0.00059177,21]
[404553200,1770283637573,-290.39862941,0.00059177,120]
[404553201,1770283637629,-1000.0,0.00059177,21]
[404553202,1770283637685,-301.1433787,0.00059177,120]
[404553203,1770283637738,-1000.0,0.00059177,21]
[404553204,1770283637791,-1000.0,0.00059177,21]
[404553205,1770283637846,-1000.0,0.00059177,21]
[404553206,1770283637900,-1000.0,0.00059177,21]
[404553207,1770283637956,-1000.0,0.00059177,21]
[404553208,1770283638012,-1000.0,0.00059177,21]
[404553209,1770283638069,-1000.0,0.00059177,21]
[404553210,1770283638122,-1000.0,0.00059177,21]
[404553211,1770283638178,-1000.0,0.00059177,21]
[404553212,1770283638231,-1000.0,0.00059177,21]
[404553213,1770283638286,-1000.0,0.00059177,21]
[404553214,1770283638342,-1000.0,0.00059177,21]
[404553215,1770283638396,-1000.0,0.00059177,21]
[404553216,1770283638452,-500.0,0.00059177,120]
[404553217,1770283638510,-1000.0,0.00059177,120]
[404553218,1770283638570,-1000.0,0.00059177,120]
[404553219,1770283638629,-1000.0,0.00059177,120]
[404553220,1770283638688,-1000.0,0.00059177,120]
[404553221,1770283638745,-1000.0,0.00059177,120]
[404553222,1770283638802,-1000.0,0.00059177,120]
[404553223,1770283638858,-1000.0,0.00059177,120]
[404553224,1770283638912,-1000.0,0.00059177,120]
[404553225,1770283638965,-1000.0,0.00059177,120]
[404553226,1770283639017,-1000.0,0.00059177,120]
[404553227,1770283639075,-1000.0,0.00059177,120]
[404553228,1770283639130,-1000.0,0.00059177,120]
[404553229,1770283639188,-1000.0,0.00059177,120]
[404553230,1770283639243,-1000.0,0.00059177,120]
[404553231,1770283639298,-1000.0,0.00059177,120]
[404553232,1770283639351,-1000.0,0.00059177,120]
[404553233,1770283639401,-1000.0,0.00059177,120]
[404553234,1770283639453,-1000.0,0.00059177,120]
[404553235,1770283639507,-1000.0,0.00059177,120]
[404553236,1770283639563,-1000.0,0.00059177,120]
[404553237,1770283639617,-250.0,0.00059177,120]
[404553238,1770283639673,-250.0,0.00059177,120]
[404553239,1770283639731,-250.0,0.00059177,120]
[404553240,1770283639794,-250.0,0.00059177,120]
[404553241,1770283639851,-250.0,0.00059177,120]
[404553242,1770283639906,-250.0,0.00059177,120]
[404553243,1770283639962,-250.0,0.00059177,120]
[404553244,1770283640018,-250.0,0.00059177,120]
[404553245,1770283640073,-250.0,0.00059177,120]
[404553246,1770283640127,-2748.66,0.00059178,120]
[404553247,1770283640186,-500.0,0.00059178,120]
[404553248,1770283640246,-500.0,0.00059178,120]
[404553249,1770283640307,-2542.46,0.00059178,120]
[404553250,1770283640363,-2594.27,0.00059178,90]
[404553251,1770283640426,-500.0,0.00059178,120]
[404553252,1770283640496,-1003.47,0.00059178,21]
[404553253,1770283640556,-3929.24,0.00059178,14]
[404553254,1770283640615,-169.68,0.000592,14]
[404553255,1770283640674,-3834.34952418,0.00059616,5]
[404553256,1770283640732,-2748.66,0.00059726,120]
[404553257,1770283640794,-500.0,0.00059726,120]
[404553258,1770283640858,-500.0,0.00059726,120]
[404553259,1770283640916,-2542.46,0.00059726,120]
[404553260,1770283640974,-2594.27,0.00059726,90]
[404553261,1770283641032,-500.0,0.00059726,120]
[404553262,1770283641089,-1003.47,0.00059726,21]
[404553263,1770283641145,-3929.24,0.00059726,14]
[404553264,1770283641208,-1000.0,0.00059874,120]
[404553265,1770283641264,-1000.0,0.00059874,120]
[404553266,1770283641321,-579.0,0.00059874,120]
[404553267,1770283641491,-88888.0,0.00059898,120]
[404553268,1770283641549,-13420.2233346,0.00059988,5]
[404553269,1770283641608,-3834.34952418,0.0005999,5]
[404553270,1770283641664,-563.186761,0.0006,120]
[404553271,1770283641720,-200.0,0.0006,120]
[404553272,1770283641778,-20000.0,0.0006,120]
[404553273,1770283641838,-205.94335388,0.0006,120]
[404553274,1770283641899,-213.25953077,0.0006,120]
[404553275,1770283641958,-20000.0,0.0006,120]
[404553276,1770283642020,-519.42124826,0.0006,7]
[404553277,1770283642078,-50000.0,0.0006,120]
[404553278,1770283642140,-155.0,0.000601,120]
[404553279,1770283642205,-2748.66,0.00060273,120]
[404553280,1770283642267,-500.0,0.00060273,120]
[404553281,1770283642327,-500.0,0.00060273,120]
[404553282,1770283642388,-2542.46,0.00060273,120]
[404553283,1770283642448,-2594.27,0.00060273,90]
[404553284,1770283642510,-500.0,0.00060273,120]
[404553285,1770283642570,-1003.47,0.00060273,21]
[404553286,1770283642628,-3929.24,0.00060273,14]
[404553287,1770283642687,-1917.17476209,0.00060811,5]
[404553288,1770283642743,-2748.66,0.00060821,120]
[404553289,1770283642799,-181.0255206,0.00060821,120]
[404553290,1770283642855,-500.0,0.00060821,120]
[404553291,1770283642914,-2542.46,0.00060821,120]
[404553292,1770283642976,-2594.27,0.00060821,90]
[404553293,1770283643035,-500.0,0.00060821,120]
[404553294,1770283643093,-1003.47,0.00060821,21]
[404553295,1770283643153,-3929.24,0.00060821,14]
[404553296,1770283643211,-240.59,0.000609,14]
[404553297,1770283643269,-2748.66,0.00061369,120]
[404553298,1770283643328,-500.0,0.00061369,120]
[404553299,1770283643387,-2542.46,0.00061369,120]
[404553300,1770283643446,-2594.27,0.00061369,90]
[404553301,1770283643504,-500.0,0.00061369,120]
[404553302,1770283643568,-1003.47,0.00061369,21]
[404553303,1770283643623,-3929.24,0.00061369,14]
[404553304,1770283643684,-155.0,0.000618,120]
[404553305,1770283643746,-2748.66,0.00061917,120]
[404553306,1770283643807,-500.0,0.00061917,120]
[404553307,1770283643866,-2542.46,0.00061917,120]
[404553308,1770283643926,-2594.27,0.00061917,90]
[404553309,1770283643984,-500.0,0.00061917,120]
[404553310,1770283644042,-1003.47,0.00061917,21]
[404553311,1770283644104,-3929.24,0.00061917,14]
[404553312,1770283644167,-20000.0,0.00062,120]
[404553313,1770283644230,-20000.0,0.00062,120]
[404553314,1770283644291,-613.85103347,0.00062456,120]
[404553315,1770283644352,-2748.66,0.00062465,120]
[404553316,1770283644413,-500.0,0.00062465,120]
[404553317,1770283644473,-2542.46,0.00062465,120]
[404553318,1770283644532,-2594.27,0.00062465,90]
[404553319,1770283644590,-500.0,0.00062465,120]
[404553320,1770283644648,-1003.47,0.00062465,21]
[404553321,1770283644705,-3929.24,0.00062465,14]
[404553322,1770283644763,-169.68,0.000625,14]
[404553323,1770283644818,-369.0,0.0006289,120]
[404553324,1770283644874,-20000.0,0.00063,120]